bitfinex/quotes_ETHUSD_20241018
["timestamp","ask_amount","ask_price","bid_price","bid_amount"]
[1729256592764,7.64159,2618.9,2618.2,7.6386]
[1729256592967,3.8231,2618.9,2618.2,3.81929]
[1729256593205,7.64155,2618.9,2618.2,3.81929]
[1729256593405,3.8231,2618.9,2618.3,3.81923]
[1729256593910,7.6415,2618.9,2618.2,3.81929]
[1729256594121,3.8231,2618.9,2618.3,7.24610783]
[1729256594331,3.8231,2618.9,2618.3,3.81914]
[1729256594626,0.764144,2618.8,2618.2,3.81929]
[1729256594830,4.582784,2618.8,2618.2,3.81929]
[1729256595035,0.764144,2618.8,2618.3,3.81924]
[1729256595330,0.764144,2618.8,2618.4,3.81911]
[1729256595491,0.764144,2618.8,2618.2,3.81929]
[1729256595701,7.64161,2618.9,2618.3,3.81927]
[1729256595910,3.8231,2618.9,2618.4,3.81903]
[1729256596128,3.81861,2618.8,2618.1,3.42696783]
[1729256596331,3.81861,2618.8,2618.3,3.81922]
[1729256596622,3.0,2618.8,2618.3,3.81922]
[1729256597810,3.81855,2618.8,2618.3,3.81922]
[1729256598010,7.6415,2618.9,2618.3,3.81922]
[1729256598497,7.6415,2618.9,2618.4,3.81909]
[1729256598913,3.8231,2618.9,2618.4,7.63814]
[1729256599239,0.8231,2618.9,2618.6,3.81874]
[1729256600305,0.8231,2618.9,2618.4,3.81901]
[1729256600306,0.8231,2618.9,2618.5,3.81898]
[1729256600837,3.8231,2618.9,2618.5,3.81898]
[1729256601942,0.8231,2618.9,2618.5,3.81888]
[1729256602499,3.8231,2618.9,2618.5,3.81888]
[1729256603823,3.81855,2618.8,2618.3,3.81926]
[1729256604020,3.8231,2618.9,2617.9,0.7552]
[1729256604210,0.8231,2618.9,2618.5,3.8189]
[1729256604544,0.8231,2618.9,2618.5,3.81889]
[1729256604920,0.8288,2619.2,2618.8,3.81854]
[1729256605101,0.8288,2619.2,2618.6,3.81883]
[1729256605301,3.0,2619.0,2618.6,3.81883]
[1729256605608,0.8288,2619.2,2618.6,7.63758]
[1729256605609,7.64681,2619.2,2618.6,7.63758]
[1729256605839,3.8181,2619.1,2618.6,3.81875]
[1729256606020,3.0,2619.0,2618.6,3.81875]
[1729256607602,3.0,2619.1,2618.6,3.81875]
[1729256608038,3.8288,2619.2,2618.6,3.81875]
[1729256608203,3.0,2619.0,2618.7,3.81866]
[1729256608400,0.8288,2619.2,2618.6,3.81875]
[1729256608736,0.8288,2619.2,2618.6,3.81873]
[1729256608737,3.0,2619.0,2618.6,3.81873]
[1729256609238,0.8288,2619.2,2618.6,0.99959881]
[1729256609442,0.8288,2619.2,2618.8,3.81854]
[1729256609633,0.8288,2619.2,2618.4,4.18216783]
[1729256609634,0.8288,2619.2,2618.6,3.81873]
[1729256609834,3.0,2619.1,2618.7,3.81861]
[1729256610213,3.8288,2619.2,2618.8,3.81853]
[1729256610404,3.8288,2619.2,2618.9,3.81831]
[1729256610624,0.8288,2619.2,2618.9,3.81831]
[1729256611024,0.8288,2619.2,2618.5,3.81898]
[1729256611229,0.8288,2619.2,2618.4,8.00126783]
[1729256611230,0.8288,2619.2,2618.8,3.81847]
[1729256611637,0.8288,2619.2,2618.9,3.81838]
[1729256611843,3.0,2619.3,2619.0,3.81815]
[1729256612140,3.0,2619.3,2618.9,4.58608]
[1729256612342,3.0,2619.4,2619.0,3.81812]
[1729256612551,6.81767,2619.4,2619.0,3.81812]
[1729256612983,0.7596,2619.5,2619.1,3.81808]
[1729256612984,3.7596,2619.5,2619.1,3.81808]
[1729256613574,3.7596,2619.5,2619.2,3.81788]
[1729256613575,0.7596,2619.5,2619.2,3.81788]
[1729256613768,3.0,2619.6,2619.2,3.81788]
[1729256613964,4.60004,2619.7,2619.2,3.81788]
[1729256613965,3.7828,2619.7,2619.2,3.81788]
[1729256614159,0.7828,2619.7,2619.1,3.81808]
[1729256614359,0.7828,2619.7,2619.2,3.81795]
[1729256614360,3.0,2619.6,2619.2,3.81795]
[1729256615133,3.0,2619.6,2619.1,3.81808]
[1729256615334,3.0,2619.6,2619.2,3.81795]
[1729256616354,6.81738,2619.6,2619.1,3.81808]
[1729256616551,6.81738,2619.6,2619.2,3.81795]
[1729256617049,3.7828,2619.7,2619.2,3.81795]
[1729256617256,7.6001,2619.7,2619.2,3.81795]
[1729256617642,7.35,2620.0,2619.6,3.42696783]
[1729256617844,3.81658,2620.2,2619.7,4.59523]
[1729256618066,3.81658,2620.2,2619.7,8.41238]
[1729256618255,0.8175,2620.3,2619.9,3.8169]
[1729256618468,0.8175,2620.3,2620.0,3.81679]
[1729256618787,3.81585,2620.7,2620.2,3.81647]
[1729256618941,4.63313,2620.8,2620.3,3.81627]
[1729256619142,3.81579,2620.7,2620.3,3.81627]
[1729256619582,3.81579,2620.7,2620.1,8.41118]
[1729256619789,0.8175,2620.8,2620.4,3.81613]
[1729256619948,0.7735,2621.4,2620.4,3.8161]
[1729256620271,0.7735,2621.4,2620.2,4.61078261]
[1729256620272,3.81553,2620.9,2620.3,3.81635]
[1729256620683,3.81527,2621.1,2620.4,3.81609]
[1729256621000,3.81527,2621.1,2620.3,4.39417248]
[1729256621001,3.81552,2620.9,2620.3,4.39417248]
[1729256621516,3.8153,2621.1,2620.3,4.39410248]
[1729256621643,3.8154,2621.0,2620.4,3.81618]
[1729256621849,3.0,2620.9,2620.3,4.39410248]
[1729256622076,6.81555,2620.9,2620.3,8.21039248]
[1729256622256,3.0,2620.9,2620.4,3.8161]
[1729256622598,3.0,2620.9,2620.3,4.39406248]
[1729256623283,6.81548,2620.9,2620.3,4.39416248]
[1729256623492,6.81548,2620.9,2620.4,0.78211303]
[1729256623690,6.81548,2620.9,2620.4,4.59824303]
[1729256623691,3.0,2620.9,2620.4,4.59824303]
[1729256623987,6.81555,2620.9,2620.4,0.78211303]
[1729256624415,3.0,2620.9,2620.4,4.59821303]
[1729256624618,3.0,2620.9,2620.4,0.78211303]
[1729256624821,3.7667,2620.9,2620.4,0.78211303]
[1729256625121,7.58219,2620.9,2620.4,0.78211303]
[1729256625287,3.7667,2620.9,2620.5,0.4598373]
[1729256625478,3.0,2620.9,2620.6,0.7923]
[1729256626019,3.81541,2621.0,2620.6,0.7923]
[1729256627412,3.81551,2620.9,2620.6,0.7923]
[1729256627576,3.81554,2620.9,2620.6,0.7923]
[1729256628200,3.81551,2620.9,2620.6,0.7923]
[1729256628611,3.81543,2621.0,2620.6,0.7923]
[1729256630585,3.81541,2621.0,2620.6,0.7923]
[1729256630811,7.63087,2621.0,2620.6,0.7923]
[1729256631031,3.81541,2621.0,2620.6,0.7923]
[1729256631384,7.63084,2621.0,2620.6,0.7923]
[1729256631657,3.81542,2621.0,2620.6,0.7923]
[1729256632332,7.63083,2621.0,2620.6,0.7923]
[1729256632558,3.81541,2621.0,2620.6,0.7923]
[1729256633942,7.63083,2621.0,2620.6,0.7923]
[1729256634154,0.822,2621.1,2620.6,5.14698465]
[1729256634155,3.0,2621.1,2620.6,5.14698465]
[1729256634325,4.64521,2621.4,2621.0,0.8328]
[1729256634326,3.81481,2621.4,2621.0,0.8328]
[1729256634767,3.81481,2621.4,2621.0,4.64812]
[1729256634969,3.81481,2621.4,2621.0,5.83717978]
[1729256635265,3.81481,2621.4,2621.0,2.02185978]
[1729256635475,3.81481,2621.4,2621.0,5.83717978]
[1729256636070,3.81478,2621.4,2621.0,5.83718978]
[1729256636664,6.81471,2621.5,2621.1,3.81517]
[1729256636844,3.0,2621.6,2621.2,4.78015598]
[1729256637063,6.81453,2621.6,2621.2,4.78015598]
[1729256637378,0.7577,2621.8,2621.2,4.78015598]
[1729256637379,0.7577,2621.8,2621.3,3.42696783]
[1729256637539,3.81439,2621.7,2621.2,4.78026598]
[1729256637931,3.81432,2621.7,2621.2,3.81494]
[1729256638147,3.81419,2621.8,2621.3,3.81487]
[1729256638478,40.96387,2622.0,2621.3,3.81487]
[1729256638479,3.81439,2621.7,2621.3,0.7627]
[1729256638686,6.81418,2621.8,2621.3,0.7627]
[1729256638968,3.81435,2621.7,2621.3,1.57078686]
[1729256639174,3.81502,2621.3,2621.0,0.7627]
[1729256639332,3.81507,2621.2,2621.0,0.7627]
[1729256640345,3.81475,2621.4,2621.0,0.7627]
[1729256640533,3.81498,2621.3,2621.0,1.220532]
[1729256640745,0.8155,2621.5,2621.0,0.7627]
[1729256640746,3.81519,2621.1,2621.0,0.7627]
[1729256641045,0.8155,2621.5,2620.7,0.7627]
[1729256641359,3.81541,2621.0,2620.7,0.7627]
[1729256641683,3.81523,2621.1,2620.7,0.7627]
[1729256641887,0.8155,2621.5,2620.7,0.7627]
[1729256641888,3.8148,2621.4,2620.9,3.81539]
[1729256642076,3.81493,2621.3,2621.0,0.381539]
[1729256642555,3.81519,2621.1,2621.0,0.381539]
[1729256642768,3.81519,2621.1,2620.7,0.7627]
[1729256643079,3.81535,2621.0,2620.7,0.7627]
[1729256643289,7.63077,2621.0,2620.7,0.7627]
[1729256643582,3.81516,2621.2,2620.7,0.7627]
[1729256643820,3.81544,2621.0,2620.7,0.7627]
[1729256644336,3.81514,2621.2,2620.8,0.46358617]
[1729256644535,3.81535,2621.0,2620.8,0.46358617]
[1729256645572,3.81514,2621.2,2620.8,0.46358617]
[1729256645870,0.8155,2621.5,2620.8,0.53988931]
[1729256646180,3.81512,2621.2,2620.9,0.51183093]
[1729256646545,3.81512,2621.2,2620.9,0.49063093]
[1729256646952,3.81485,2621.4,2621.0,0.8092]
[1729256647149,3.81497,2621.3,2621.0,0.88549854]
[1729256647445,3.81485,2621.4,2621.0,1.4510161]
[1729256647809,3.81454,2621.6,2621.1,4.62178]
[1729256648081,3.81424,2621.8,2621.3,3.81488]
[1729256648283,3.81433,2621.7,2621.4,0.8067]
[1729256648437,40.96388,2622.0,2621.6,7.24137783]
[1729256648747,3.81412,2621.9,2621.7,0.8067]
[1729256648952,3.81417,2621.8,2621.7,0.8067]
[1729256649166,3.81417,2621.8,2621.3,0.8067]
[1729256649167,3.81435,2621.7,2621.3,0.8067]
[1729256649747,40.9639,2622.0,2621.4,3.81463]
[1729256649967,3.81414,2621.9,2621.5,0.8257]
[1729256650358,3.81417,2621.8,2621.5,0.8257]
[1729256651291,3.81403,2621.9,2621.5,0.8257]
[1729256651476,3.81403,2621.9,2621.5,4.64028]
[1729256651682,3.81403,2621.9,2621.5,5.56625398]
[1729256652045,37.1499,2622.0,2621.5,5.56625398]
[1729256652251,40.9638,2622.0,2621.5,5.56625398]
[1729256652590,37.1499,2622.0,2621.7,3.81425]
[1729256652802,37.1499,2622.0,2621.9,0.7522]
[1729256653787,37.1499,2622.0,2621.9,4.56622]
[1729256656299,36.94288099,2622.0,2621.9,4.56622]
[1729256656499,14.9860377,2622.0,2621.9,18.97580561]
[1729256656668,14.9860377,2622.0,2621.9,10.54883778]
[1729256656996,14.9860377,2622.0,2621.9,9.99883778]
[1729256658002,14.9860377,2622.0,2621.9,6.99883778]
[1729256658151,14.8361377,2622.0,2621.9,6.99883778]
[1729256658357,14.8361377,2622.0,2621.9,5.74883778]
[1729256660778,14.8361377,2622.0,2621.9,9.17580561]
[1729256661695,14.8361377,2622.0,2621.9,5.74883778]
[1729256663729,14.8361377,2622.0,2621.9,5.82510672]
[1729256664066,14.8361377,2622.0,2621.9,5.74883778]
[1729256673111,14.8361377,2622.0,2621.9,0.7522]
[1729256673287,14.8361377,2622.0,2621.8,0.05722386]
[1729256673870,3.81402,2621.9,2621.8,0.05722386]
[1729256674310,4.58452,2621.9,2621.8,0.05722386]
[1729256674747,3.81484,2621.4,2621.0,0.7557]
[1729256674817,3.81484,2621.4,2621.0,0.838676]
[1729256674818,4.64714,2621.4,2621.0,0.838676]
[1729256675315,3.81508,2621.2,2620.7,3.82457992]
[1729256675868,3.81527,2621.1,2620.5,4.62546]
[1729256676211,0.8051,2621.3,2620.4,3.87338502]
[1729256676418,0.8051,2620.9,2620.4,0.05725502]
[1729256676715,3.81606,2620.5,2620.4,0.05725502]
[1729256677069,3.81592,2620.6,2620.4,0.05725502]
[1729256677575,7.63198,2620.6,2620.4,0.05725502]
[1729256677776,3.81606,2620.5,2620.4,0.05725502]
[1729256678265,3.81592,2620.6,2620.4,0.05725502]
[1729256678703,3.81566,2620.8,2620.4,0.05725502]
[1729256678704,3.81577,2620.7,2620.4,0.05725502]
[1729256679209,3.81566,2620.8,2620.4,0.05725502]
[1729256679210,3.81563,2620.8,2620.4,0.05725502]
[1729256680206,0.8051,2620.9,2620.5,3.81606]
[1729256681077,0.8051,2620.9,2620.4,0.82623352]
[1729256681302,4.62066,2620.9,2620.4,4.64240352]
[1729256682122,0.8051,2620.9,2620.5,3.81606]
[1729256682672,0.8051,2620.9,2620.7,3.81576]
[1729256682975,0.7628,2621.2,2620.8,3.81558]
[1729256683613,4.57787,2621.2,2620.8,3.81558]
[1729256683911,0.7628,2621.2,2620.8,3.81558]
[1729256685110,6.81482,2621.4,2620.9,3.81538]
[1729256685915,0.8116,2621.5,2621.0,3.81533]
[1729256686125,4.62621,2621.5,2621.0,3.81533]
[1729256686416,8.44093,2621.5,2621.0,3.81533]
[1729256686582,3.81512,2621.2,2620.7,7.24273783]
[1729256686775,3.81512,2621.2,2620.8,1.10586078]
[1729256686975,3.81519,2621.1,2620.8,1.10586078]
[1729256687223,3.8155,2620.9,2620.4,4.5850585]
[1729256687373,3.81563,2620.8,2620.4,4.5850585]
[1729256687825,4.64044,2621.0,2620.4,4.5850585]
[1729256687826,4.64044,2621.0,2620.5,3.81604]
[1729256688216,8.45588,2621.0,2620.5,7.24300783]
[1729256688302,4.64044,2621.0,2620.5,7.24300783]
[1729256688482,4.64044,2621.0,2620.5,8.42581446]
[1729256688676,4.64044,2621.0,2620.7,3.42696783]
[1729256688677,0.8251,2621.0,2620.7,3.42696783]
[1729256688902,3.8152,2621.1,2620.7,3.42696783]
[1729256689184,3.81504,2621.2,2620.8,3.81555]
[1729256689537,3.81504,2621.2,2620.5,8.48297801]
[1729256689752,3.8154,2621.0,2620.6,0.8482978]
[1729256689949,3.81562,2620.9,2620.5,0.05725355]
[1729256690083,3.81588,2620.7,2620.5,0.05725355]
[1729256690801,4.59255,2620.8,2620.5,0.05725355]
[1729256691179,3.81544,2621.0,2620.5,0.05725355]
[1729256691376,3.81549,2620.9,2620.5,0.05725355]
[1729256691712,3.81549,2620.9,2620.5,4.59588152]
[1729256692821,3.81549,2620.9,2620.5,8.41193152]
[1729256693125,4.60834,2621.0,2620.5,8.41193152]
[1729256693453,3.81566,2620.8,2620.5,4.59588152]
[1729256693661,3.81566,2620.8,2620.5,3.48422138]
[1729256694173,3.81548,2620.9,2620.5,3.48422138]
[1729256694531,7.63106,2620.9,2620.5,3.48422138]
[1729256695158,3.81531,2621.1,2620.6,0.8324]
[1729256695315,3.8154,2621.0,2620.6,0.8324]
[1729256695535,3.8154,2621.0,2620.6,2.02727214]
[1729256695936,3.8154,2621.0,2620.6,5.84317214]
[1729256696368,3.8153,2621.1,2620.6,5.84317214]
[1729256696678,3.8153,2621.1,2620.6,2.02727214]
[1729256696874,3.8153,2621.1,2620.7,3.81577]
[1729256697227,3.8153,2621.1,2620.7,3.81569]
[1729256697534,4.60679,2621.3,2620.8,3.81549]
[1729256697831,4.60679,2621.3,2620.8,3.81555]
[1729256697832,8.42179,2621.3,2620.8,3.81555]
[1729256698032,3.81506,2621.2,2620.7,3.81573]
[1729256698235,3.81544,2621.0,2620.6,0.8324]
[1729256698551,3.81544,2621.0,2620.0,3.81673]
[1729256698552,3.816,2620.6,2620.1,4.62338]
[1729256699629,3.81592,2620.6,2620.1,8.4399]
[1729256699854,4.64298,2620.7,2620.1,4.62333]
[1729256700076,3.816,2620.6,2620.1,8.43984]
[1729256700246,4.64298,2620.7,2620.2,3.81642]
[1729256700463,8.45886,2620.7,2620.2,5.00308978]
[1729256700673,4.64298,2620.7,2620.2,1.18666978]
[1729256700847,3.816,2620.6,2620.2,1.18666978]
[1729256701265,3.816,2620.6,2620.2,5.00306978]
[1729256701688,3.816,2620.6,2620.2,5.00313978]
[1729256702158,4.643,2620.7,2620.2,3.81647]
[1729256702351,3.81599,2620.6,2620.2,3.81647]
[1729256702821,3.81599,2620.6,2620.1,8.10765838]
[1729256703221,3.81621,2620.4,2620.0,3.81677]
[1729256703495,4.64298,2620.7,2619.9,4.25046783]
[1729256703706,4.64298,2620.7,2619.3,0.01888992]
[1729256703707,3.81693,2619.9,2619.7,0.05727025]
[1729256704068,3.81694,2619.9,2619.7,0.05727025]
[1729256704560,7.63367,2620.0,2619.7,0.05727025]
[1729256704854,3.8168,2620.0,2619.7,0.05727025]
[1729256705077,3.81708,2619.8,2619.7,0.05727025]
[1729256705299,3.81695,2619.9,2619.7,0.05727025]
[1729256705499,3.81679,2620.0,2619.7,0.05727025]
[1729256705899,3.81694,2619.9,2619.7,0.05727025]
[1729256706102,3.81679,2620.0,2619.7,0.05727025]
[1729256707366,3.81666,2620.1,2619.7,0.05727025]
[1729256707575,3.81688,2620.0,2619.7,0.05727025]
[1729256707769,3.81702,2619.9,2619.7,0.05727025]
[1729256707969,3.81708,2619.8,2619.7,0.05727025]
[1729256708199,3.81688,2620.0,2619.7,0.05727025]
[1729256708496,7.63379,2620.0,2619.7,0.05727025]
[1729256709000,3.81688,2620.0,2619.7,0.05727025]
[1729256709562,7.6338,2620.0,2619.7,0.05727025]
[1729256709868,3.81696,2619.9,2619.7,0.05727025]
[1729256710672,3.81665,2620.1,2619.7,0.05727025]
[1729256710883,3.8168,2620.0,2619.7,0.05727025]
[1729256711814,3.81645,2620.3,2619.9,3.42696783]
[1729256712115,3.81587,2620.7,2620.1,7.24359783]
[1729256712325,3.81587,2620.7,2620.1,3.42696783]
[1729256712596,7.63114,2620.9,2620.4,3.81619]
[1729256712903,7.63114,2620.9,2620.3,4.21926783]
[1729256712904,3.81574,2620.8,2620.3,8.03560783]
[1729256713111,3.81556,2620.9,2620.3,9.22081161]
[1729256713275,3.81579,2620.7,2620.3,5.79384378]
[1729256713601,3.81579,2620.7,2620.3,9.22081161]
[1729256713823,3.81563,2620.8,2620.3,9.22072161]
[1729256713975,3.81563,2620.8,2620.4,3.81619]
[1729256714317,4.6468,2621.0,2620.4,4.73826216]
[1729256714610,0.8314,2621.0,2620.4,0.92207216]
[1729256714770,4.64683,2621.0,2620.4,0.92207216]
[1729256714965,3.8155,2620.9,2620.4,3.81611]
[1729256715196,3.81493,2621.3,2620.5,3.42696783]
[1729256715197,3.81519,2621.1,2620.5,3.42696783]
[1729256715448,3.0,2621.2,2620.8,0.7619]
[1729256715710,3.81518,2621.2,2620.8,4.5775]
[1729256715879,3.81511,2621.2,2620.8,4.5775]
[1729256716510,3.8152,2621.1,2620.8,0.7619]
[1729256716696,3.81505,2621.2,2620.8,0.7619]
[1729256716877,3.81511,2621.2,2620.8,1.94393578]
[1729256717412,4.63009,2621.3,2620.8,1.18203578]
[1729256717413,3.81542,2621.0,2620.8,1.18203578]
[1729256717611,0.8151,2621.3,2620.3,3.48422453]
[1729256717612,3.81565,2620.8,2620.3,4.6698367]
[1729256717774,3.8155,2620.9,2620.4,3.81614]
[1729256718111,3.8155,2620.9,2620.5,0.84859767]
[1729256718706,3.81559,2620.9,2620.5,0.84859767]
[1729256718927,3.81548,2620.9,2620.5,0.84859767]
[1729256719076,3.81571,2620.8,2620.5,0.84859767]
[1729256719393,3.81571,2620.8,2620.4,3.81619]
[1729256719593,3.81571,2620.8,2620.3,8.09674453]
[1729256719987,3.81549,2620.9,2620.4,3.81609]
[1729256720314,3.81544,2621.0,2620.5,11.05894783]
[1729256720511,3.81544,2621.0,2620.5,7.24294783]
[1729256720811,7.6303,2621.2,2620.7,8.04993783]
[1729256721197,3.81522,2621.1,2620.7,8.04993783]
[1729256722140,7.63032,2621.2,2620.7,8.04993783]
[1729256723020,3.8152,2621.1,2620.7,8.04993783]
[1729256723255,3.8152,2621.1,2620.7,4.62297]
[1729256723441,3.81514,2621.2,2620.7,0.8073]
[1729256723655,3.81559,2620.9,2620.5,4.64212]
[1729256723952,3.81559,2620.9,2620.5,0.8261]
[1729256723953,3.81551,2620.9,2620.5,0.8261]
[1729256724757,3.81551,2620.9,2620.5,4.64214]
[1729256725653,3.81514,2621.2,2620.7,7.24266783]
[1729256725864,3.81514,2621.2,2620.8,0.7694]
[1729256726422,3.81499,2621.3,2620.8,0.7694]
[1729256726821,3.81504,2621.2,2620.8,0.7694]
[1729256727304,3.81499,2621.3,2620.8,4.58502]
[1729256727457,7.63,2621.3,2620.8,4.58502]
[1729256727955,7.62992,2621.3,2620.8,4.58492]
[1729256728342,3.81512,2621.2,2620.8,4.58492]
[1729256728745,3.81512,2621.2,2620.8,0.7694]
[1729256729562,3.81512,2621.2,2620.8,4.58501]
[1729256729922,3.81512,2621.2,2620.8,0.7694]
[1729256730561,3.81519,2621.1,2620.8,0.7694]
[1729256731060,3.81512,2621.2,2620.8,0.7694]
[1729256731267,3.81519,2621.1,2620.8,0.7694]
[1729256732737,3.81471,2621.5,2621.0,3.81527]
[1729256732924,0.815,2621.7,2621.1,3.42696783]
[1729256733681,3.81452,2621.6,2621.1,11.05724783]
[1729256733891,5.78398371,2621.9,2621.5,3.8146]
[1729256734175,5.78398371,2621.9,2621.6,0.7765]
[1729256734176,3.81415,2621.9,2621.6,0.7765]
[1729256734371,3.81415,2621.9,2621.1,0.7765]
[1729256734372,0.7823,2621.7,2621.1,0.7765]
[1729256734565,3.81467,2621.5,2621.1,0.7765]
[1729256734936,3.81467,2621.5,2621.1,4.59168]
[1729256735139,3.81484,2621.4,2621.1,0.7765]
[1729256735435,0.7823,2621.7,2621.1,1.58600181]
[1729256735436,3.81468,2621.5,2621.1,1.58600181]
[1729256736079,3.81434,2621.7,2621.2,3.81496]
[1729256736382,3.81434,2621.7,2621.3,0.54009618]
[1729256736744,3.8141,2621.9,2621.4,0.7912]
[1729256737061,3.8141,2621.9,2621.5,3.81457]
[1729256737259,18.6500377,2622.0,2621.5,3.81457]
[1729256737471,18.6500277,2622.0,2621.6,3.81436]
[1729256738786,18.6500277,2622.0,2621.6,4.656399]
[1729256738990,14.8361377,2622.0,2621.6,4.656399]
[1729256739362,14.8361377,2622.0,2621.7,3.81424]
[1729256740095,14.8361377,2622.0,2621.7,3.81423]
[1729256740449,14.8361377,2622.0,2621.7,7.62846]
[1729256740648,14.8361377,2622.0,2621.8,1.18974568]
[1729256740887,14.8361377,2622.0,2621.8,5.00390568]
[1729256741261,14.8361377,2622.0,2621.8,1.18974568]
[1729256741443,14.8361377,2622.0,2621.7,3.81425]
[1729256741880,3.81406,2621.9,2621.5,3.81449]
[1729256742509,18.6500177,2622.0,2621.5,3.81449]
[1729256742960,14.8361377,2622.0,2621.6,3.81442]
[1729256743179,3.81404,2621.9,2621.5,3.81459]
[1729256743379,3.81404,2621.9,2621.6,0.72415578]
[1729256745088,18.6500177,2622.0,2621.6,0.72415578]
[1729256745263,14.8361377,2622.0,2621.6,0.72415578]
[1729256745594,3.81404,2621.9,2621.6,0.72415578]
[1729256745971,18.6500277,2622.0,2621.6,0.72415578]
[1729256747052,14.8361377,2622.0,2621.7,0.45958875]
[1729256747406,14.8361377,2622.0,2621.8,0.7643]
[1729256747592,14.8361377,2622.0,2621.8,4.57845]
[1729256747765,14.8361377,2622.0,2621.8,0.7643]
[1729256751963,18.6501177,2622.0,2621.5,8.48460169]
[1729256752159,18.6501177,2622.0,2621.6,3.81445]
[1729256752462,18.6501177,2622.0,2621.6,5.00559695]
[1729256752658,22.4641377,2622.0,2621.6,1.19114695]
[1729256753063,18.6501177,2622.0,2621.6,1.19114695]
[1729256753290,18.6501177,2622.0,2621.6,5.00556695]
[1729256753663,18.6500977,2622.0,2621.6,1.19114695]
[1729256754358,18.6500977,2622.0,2621.6,5.00557695]
[1729256756303,22.4640577,2622.0,2621.6,5.00557695]
[1729256756501,3.81404,2621.9,2621.6,1.19114695]
[1729256756691,3.81414,2621.9,2621.5,0.85553169]
[1729256757004,3.81446,2621.6,2621.5,0.05723169]
[1729256757406,3.81514,2621.2,2621.0,0.797]
[1729256757705,3.81514,2621.2,2620.7,3.81576]
[1729256757706,3.81519,2621.1,2620.7,4.63496]
[1729256757905,3.81519,2621.1,2620.8,0.845079]
[1729256758088,7.63052,2621.1,2620.8,0.845079]
[1729256758410,3.8155,2620.9,2620.7,0.8192]
[1729256758965,3.81519,2621.1,2620.7,0.8192]
[1729256759196,4.60799,2621.3,2620.7,8.06189783]
[1729256759397,4.60799,2621.3,2620.7,4.24616783]
[1729256759562,3.81521,2621.1,2620.7,4.24616783]
[1729256759765,3.81521,2621.1,2620.8,0.80619478]
[1729256760375,3.81506,2621.2,2620.8,4.62179478]
[1729256762407,3.81506,2621.2,2620.8,0.80619478]
[1729256762768,3.81526,2621.1,2620.8,0.80619478]
[1729256763067,3.81461,2621.5,2620.9,0.88681326]
[1729256763262,4.58073808,2621.8,2620.9,7.24237783]
[1729256763263,0.818,2621.6,2620.9,7.24237783]
[1729256763462,3.81488,2621.4,2620.9,3.81541]
[1729256763868,3.81488,2621.4,2620.9,3.8154]
[1729256764076,3.81488,2621.4,2620.9,1.18772478]
[1729256764294,3.81504,2621.2,2620.7,4.63488]
[1729256764502,3.81504,2621.2,2620.7,8.06184783]
[1729256764712,3.81504,2621.2,2620.8,3.8156]
[1729256765175,3.81504,2621.2,2620.7,8.06184783]
[1729256765513,3.81504,2621.2,2620.8,0.80618478]
[1729256765867,3.81529,2621.1,2620.8,0.80618478]
[1729256766067,3.81504,2621.2,2620.8,0.80618478]
[1729256766668,3.81519,2621.1,2620.8,0.80618478]
[1729256768216,3.81457,2621.6,2621.2,3.81497]
[1729256768383,3.81457,2621.6,2621.2,0.456687]
[1729256768704,3.81475,2621.4,2621.0,0.7519]
[1729256769578,3.81475,2621.4,2621.0,4.64350119]
[1729256769777,0.8005,2621.8,2621.0,4.5672]
[1729256769981,3.81468,2621.5,2621.0,4.5672]
[1729256770195,3.81468,2621.5,2621.1,3.81517]
[1729256770396,3.81468,2621.5,2621.2,0.456707]
[1729256771100,3.81477,2621.4,2621.2,0.456707]
[1729256771276,3.81499,2621.3,2620.8,5.39802478]
[1729256771477,3.81506,2621.2,2620.8,5.39802478]
[1729256772092,3.81506,2621.2,2620.8,1.58248478]
[1729256772281,3.81499,2621.3,2620.8,0.80618478]
[1729256772484,3.81477,2621.4,2620.9,8.87491909]
[1729256772688,3.81477,2621.4,2620.9,12.69033909]
[1729256772886,3.81477,2621.4,2621.0,3.81531]
[1729256773921,3.81477,2621.4,2621.1,0.05723883]
[1729256775176,3.81503,2621.3,2621.1,0.05723883]
[1729256775375,7.63001,2621.3,2621.1,0.05723883]
[1729256775598,1.539001,2621.3,2620.7,0.7586]
[1729256775798,3.81542,2621.0,2620.7,0.7586]
[1729256776124,3.8155,2620.9,2620.7,0.7586]
[1729256776901,3.81562,2620.8,2620.5,0.82365136]
[1729256777108,3.81592,2620.6,2620.5,0.05725136]
[1729256777473,3.81578,2620.7,2620.5,0.05725136]
[1729256778603,3.81563,2620.8,2620.5,0.05725136]
[1729256778996,3.81563,2620.8,2620.4,3.81614]
[1729256779217,3.81563,2620.8,2620.4,5.00288688]
[1729256779716,3.81563,2620.8,2620.4,1.18674688]
[1729256780432,3.81563,2620.8,2620.2,4.23483877]
[1729256780433,3.81602,2620.6,2620.2,0.80787094]
[1729256780579,3.81635,2620.3,2620.2,0.80787094]
[1729256780775,3.81689,2620.0,2619.8,0.7837]
[1729256781113,3.81693,2619.9,2619.6,0.85117214]
[1729256781329,3.8165,2620.2,2619.7,3.81708]
[1729256781620,3.81579,2620.7,2620.1,3.81664]
[1729256781786,3.81564,2620.8,2620.3,3.81627]
[1729256781986,3.81564,2620.8,2620.4,0.7939]
[1729256782500,3.81579,2620.7,2620.4,0.7939]
[1729256783034,4.56624,2621.0,2620.6,3.42696783]
[1729256783315,3.8153,2621.1,2620.6,7.24278783]
[1729256783718,7.63059,2621.1,2620.6,3.81582]
[1729256784185,3.81552,2620.9,2620.4,12.69578083]
[1729256784390,7.63109,2620.9,2620.4,5.06352083]
[1729256784589,3.81552,2620.9,2620.4,1.636553]
[1729256784791,3.81571,2620.8,2620.4,1.636553]
[1729256786125,3.81571,2620.8,2620.2,3.87374968]
[1729256786126,3.81592,2620.6,2620.2,3.87374968]